Workbook

Sheet Лист1
D1: Приложение № 4
D2: к пояснительной записке к
D3: решению Совета народных депутатов
D4: ЗАТО г.Радужный Владимирской области
D5: от 12.12.2016г. № 17/91
A7: Расшифровка расходов на оплату труда работников бюджетной сферы в разрезе
A8: бюджетных и казенных муниципальных учреждений ЗАТО г.Радужный
A9: Владимирской области на 2017 год
A11: Учреждение | B11: Вид расхода | C11: Фонд оплаты труда | D11: Взносы по обязательному сос.страхованию | E11: Сумма, тыс.руб
A13: Боджетные учреждения, в том числе: | B13: 611 | C13: =C14+C22 -> 138041.399 | D13: =D14+D22 -> 41731.849 | E13: =E14+E22 -> 179773.248
A14: -Управление образования | B14: 611 | C14: 114815.4 | D14: 34717.6 | E14: =C14+D14 -> 149533
A15: МБДОУ ЦРР-д/с N 3 | B15: 611 | C15: 13815 | D15: 4174 | E15: =C15+D15 -> 17989
A16: МБДОУ ЦРР-д/с N 5 | B16: 611 | C16: 28272 | D16: 8561 | E16: 36833
A17: МБДОУ ЦРР-д/с N 6 | B17: 611 | C17: 13925 | D17: 4205 | E17: 18130
A18: МБОУ СОШ N 1 | B18: 611 | C18: 23100.7 | D18: 6994.8 | E18: 30095.5
A19: МБОУ СОШ N 2 | B19: 611 | C19: 27620.7 | D19: 8341.8 | E19: 35962.5
A20: МБОУ ДО ЦВР "Лад" | B20: 611 | C20: 8082 | D20: 2441 | E20: 10523
A22: -МКУ "Комитет по культуре и спорту | B22: 611 | C22: =C23+C24+C25+C26+C27+C28+C29 -> 23225.999 | D22: =D23+D24+D25+D26+D27+D28+D29 -> 7014.249 | E22: =C22+D22 -> 30240.248
A23: МБУК КЦ "Досуг" | B23: 611 | C23: 2900.902 | D23: 876.072 | E23: 3776.974
A24: МБУК ОБ ЗАТО г.Радужный | B24: 611 | C24: 1292.127 | D24: 390.222 | E24: 1682.349
A25: МБУК "ЦДМ" | B25: 611 | C25: 2256.867 | D25: 681.574 | E25: 2938.441
A26: МБУК ПКиО зато гРадужный | B26: 611 | C26: 972 | D26: 293.544 | E26: 1265.544
A27: МБУК "МСДЦ" ЗАТО г. Радужный | B27: 611 | C27: 2841.092 | D27: 858.01 | E27: 3699.102
A28: МБУДО "ДШИ" | B28: 611 | C28: 5529.4 | D28: 1669.877 | E28: 7199.277
A29: МБОУДОД ДЮСШ | B29: 611 | C29: =7309.187+124.424 -> 7433.611 | D29: =2207.374+37.576 -> 2244.95 | E29: 9678.561
A31: Казенные учреждения | B31: 111 | C31: 53952.56 | E31: =C31 -> 53952.56
B32: 119 | D32: 16293.68 | E32: =D32 -> 16293.68
A34: Многопрофильный центр при администрации, информационно-имущественный центр, финансово-ревизионный центр | B34: 111 | C34: 2447.03 | E34: =C34 -> 2447.03
B35: 119 | D35: 738.54 | E35: =D35 -> 738.54
A37: И Т О Г О | E37: =E13+E31+E32+E34+E35 -> 253205.058
A41: Руководитель | E41: О.М.Горшкова
A43: Зав.бюджетным отделом | E43: Л.И.Заболотских

Sheet Лист2

Sheet Лист3
